bitfinex-derivatives/quotes_BTCF0:USTF0_20240923
["timestamp","ask_amount","ask_price","bid_price","bid_amount"]
[1727101314618,0.19,63659.0,63652.0,0.04623116]
[1727101315013,0.19,63659.0,63652.0,0.12478616]
[1727101315212,0.19,63659.0,63654.0,0.078553]
[1727101315525,0.00235756,63660.0,63657.0,0.078549]
[1727101315724,0.00235756,63660.0,63659.0,0.439347]
[1727101315921,0.00235756,63660.0,63657.0,0.078549]
[1727101316422,0.19,63669.0,63656.0,0.04623116]
[1727101316621,0.078534,63670.0,63657.0,0.04623116]
[1727101316815,0.078534,63670.0,63658.0,0.04623116]
[1727101317014,0.078534,63670.0,63654.0,0.36284]
[1727101317015,0.078534,63670.0,63661.0,0.078543]
[1727101317523,0.078534,63670.0,63657.0,0.06139225]
[1727101317524,0.078523,63679.0,63663.0,0.19]
[1727101317723,0.3608,63680.0,63669.0,0.3608]
[1727101318532,0.439322,63680.0,63673.0,0.07853]
[1727101319224,0.078526,63677.0,63670.0,0.078533]
[1727101319421,0.3608,63680.0,63669.0,0.3608]
[1727101319626,0.19,63675.0,63669.0,0.3608]
[1727101320515,0.078533,63670.0,63669.0,0.3608]
[1727101320716,0.078536,63668.0,63662.0,0.3608]
[1727101321130,0.5508,63670.0,63662.0,0.3608]
[1727101321422,0.3608,63670.0,63666.0,0.078537]
[1727101321623,0.5508,63680.0,63662.0,0.3608]
[1727101321831,0.00789455,63682.0,63662.0,0.3608]
[1727101321832,0.3608,63681.0,63671.0,0.19]
[1727101322028,0.36315689,63683.0,63679.0,0.078522]
[1727101322218,0.36315689,63683.0,63680.0,0.078521]
[1727101322421,0.0079425,63682.0,63680.0,0.078521]
[1727101322715,0.36315689,63683.0,63676.0,0.268525]
[1727101323118,0.44167489,63683.0,63676.0,0.268525]
[1727101323323,0.44167489,63683.0,63672.0,0.12476116]
[1727101323324,0.07852,63681.0,63672.0,0.12476116]
[1727101323514,0.44167489,63683.0,63671.0,0.33843116]
[1727101323515,0.36315689,63683.0,63671.0,0.33843116]
[1727101323822,0.36315689,63683.0,63676.0,0.5508]
[1727101324115,0.36315689,63683.0,63682.0,0.078519]
[1727101324626,0.36315689,63683.0,63678.0,0.078523]
[1727101324923,0.00235689,63683.0,63682.0,0.078519]
[1727101325226,0.3608,63691.0,63690.0,0.078509]
[1727101325420,0.078501,63697.0,63689.0,0.19]
[1727101325631,0.3608,63703.0,63696.0,0.3608]
[1727101325632,0.078498,63699.0,63696.0,0.3608]
[1727101325923,0.3608,63703.0,63691.0,0.078506]
[1727101325924,0.0785,63698.0,63691.0,0.078506]
[1727101326122,0.0785,63698.0,63692.0,0.078506]
[1727101326315,0.3608,63703.0,63689.0,0.2912]
[1727101326522,0.3608,63703.0,63698.0,0.078498]
[1727101326716,0.3608,63703.0,63694.0,0.631344]
[1727101326930,0.439293,63703.0,63694.0,0.629304]
[1727101327128,0.3608,63703.0,63694.0,0.5508]
[1727101327316,0.3608,63703.0,63698.0,0.078498]
[1727101327715,0.3608,63703.0,63699.0,0.078497]
[1727101328124,0.3608,63703.0,63694.0,0.631343]
[1727101328341,0.3608,63703.0,63695.0,0.078502]
[1727101328529,0.3608,63703.0,63694.0,0.5508]
[1727101328530,0.3608,63703.0,63696.0,0.0785]
[1727101328715,0.3608,63703.0,63694.0,0.55284]
[1727101328915,0.3608,63703.0,63699.0,0.078496]
[1727101329334,0.00235578,63704.0,63700.0,0.3608]
[1727101329515,0.00235578,63704.0,63703.0,0.078493]
[1727101330027,0.00235578,63704.0,63699.0,0.19]
[1727101330216,0.00235578,63704.0,63703.0,0.078493]
[1727101330826,0.00235578,63704.0,63701.0,0.3608]
[1727101331829,0.08084778,63704.0,63701.0,0.3608]
[1727101332423,0.078494,63703.0,63701.0,0.3608]
[1727101333023,0.00235578,63704.0,63701.0,0.3608]
[1727101333223,0.00235578,63704.0,63701.0,0.439295]
[1727101333428,0.3608,63708.0,63701.0,0.3608]
[1727101333626,1.57848,63714.0,63705.0,0.19]
[1727101333825,1.57848,63714.0,63708.0,0.078486]
[1727101333826,0.078481,63713.0,63708.0,0.078486]
[1727101334130,0.078481,63713.0,63706.0,0.0925]
[1727101334131,1.5,63714.0,63706.0,0.0925]
[1727101334336,0.078483,63712.0,63706.0,0.0925]
[1727101334635,0.078486,63709.0,63706.0,0.0925]
[1727101334834,0.078473,63719.0,63706.0,0.0925]
[1727101334835,0.07848,63713.0,63706.0,0.0925]
[1727101335030,0.07848,63713.0,63707.0,0.078488]
[1727101335226,1.5,63714.0,63706.0,0.0925]
[1727101335428,1.5,63714.0,63707.0,0.078487]
[1727101335429,0.3608,63714.0,63707.0,0.078487]
[1727101335627,0.078477,63716.0,63711.0,0.19]
[1727101336334,0.078479,63715.0,63711.0,0.19]
[1727101336634,0.078479,63715.0,63707.0,0.3608]
[1727101336835,0.078485,63710.0,63707.0,0.3608]
[1727101337137,0.078479,63714.0,63707.0,0.3608]
[1727101338031,0.078474,63718.0,63711.0,0.19]
[1727101338243,0.75368,63720.0,63717.0,0.268475]
[1727101338537,0.75368,63720.0,63718.0,0.078473]
[1727101338923,0.00235492,63733.0,63719.0,0.3608]
[1727101338924,0.078464,63727.0,63719.0,0.3608]
[1727101339231,0.078461,63729.0,63728.0,0.19]
[1727101339426,0.00235492,63733.0,63730.0,0.078459]
[1727101339631,0.00235492,63733.0,63732.0,0.268457]
[1727101340039,0.00235492,63733.0,63732.0,0.629257]
[1727101340340,0.3608,63739.0,63733.0,0.078456]
[1727101340731,0.3608,63739.0,63732.0,0.5508]
[1727101341126,0.078451,63737.0,63732.0,0.5508]
[1727101341333,0.3608,63739.0,63732.0,0.5508]
[1727101342233,0.078454,63735.0,63732.0,0.5508]
[1727101342627,0.078452,63736.0,63732.0,0.3608]
[1727101342628,0.078456,63733.0,63732.0,0.3608]
[1727101342843,0.078453,63735.0,63732.0,0.5508]
[1727101343138,0.39272,63744.0,63732.0,0.5508]
[1727101343352,0.39272,63744.0,63738.0,0.19]
[1727101343732,0.75352,63744.0,63732.0,0.3608]
[1727101343931,0.831963,63744.0,63732.0,0.3608]
[1727101344135,0.078453,63736.0,63732.0,0.3608]
[1727101344338,0.078445,63742.0,63732.0,0.3608]
[1727101344643,0.078448,63739.0,63733.0,0.078455]
[1727101344945,0.078451,63738.0,63732.0,0.5508]
[1727101345241,0.078448,63740.0,63732.0,0.629256]
[1727101345537,0.75352,63744.0,63732.0,0.629256]
[1727101345739,0.078451,63738.0,63732.0,0.629256]
[1727101345931,0.75352,63744.0,63732.0,0.5508]
[1727101346429,0.75352,63744.0,63727.0,0.0928]
[1727101346430,0.078452,63736.0,63727.0,0.0928]
[1727101346629,0.078461,63730.0,63727.0,0.0928]
[1727101346942,0.3608,63737.0,63727.0,0.0928]
[1727101346943,0.078455,63734.0,63727.0,0.0928]
[1727101347442,0.268446,63741.0,63727.0,0.0928]
[1727101347632,0.07845,63738.0,63727.0,0.0928]
[1727101347830,0.078445,63742.0,63732.0,0.19]
[1727101348139,0.75352,63744.0,63732.0,0.19]
[1727101348441,0.078449,63739.0,63729.0,0.07846]
[1727101348645,0.078449,63739.0,63727.0,0.0928]
[1727101348829,0.3608,63736.0,63727.0,0.0928]
[1727101349937,0.19,63735.0,63727.0,0.0928]
[1727101350137,0.19,63735.0,63726.0,0.3608]
[1727101350340,0.19,63735.0,63718.0,0.36284]
[1727101350341,0.078464,63726.0,63718.0,0.3608]
[1727101350528,0.5508,63730.0,63718.0,0.3608]
[1727101350730,0.26846,63730.0,63719.0,0.078472]
[1727101350929,0.078456,63734.0,63719.0,0.078472]
[1727101351130,0.3608,63736.0,63721.0,0.19]
[1727101351339,0.3608,63736.0,63726.0,0.19]
[1727101351738,0.3608,63736.0,63735.0,0.078453]
[1727101352336,0.3608,63736.0,63732.0,0.078456]
[1727101352639,0.3608,63736.0,63727.0,0.3608]
[1727101352640,0.439253,63736.0,63730.0,0.078459]
[1727101353046,0.3608,63736.0,63730.0,0.078459]
[1727101353444,0.3608,63736.0,63731.0,0.078458]
[1727101353642,0.3608,63736.0,63727.0,0.439263]
[1727101353844,0.078453,63735.0,63727.0,0.3608]
[1727101354049,0.268453,63735.0,63727.0,0.3608]
[1727101354245,0.078458,63732.0,63727.0,0.3608]
[1727101354541,0.3608,63736.0,63722.0,0.0955]
[1727101354542,0.19,63730.0,63725.0,0.3608]
[1727101354842,0.19,63730.0,63719.0,0.078472]
[1727101354843,0.078464,63727.0,63719.0,0.078472]
[1727101355544,0.19,63730.0,63718.0,0.3608]
[1727101355743,0.078466,63725.0,63717.0,0.08082913]
[1727101356149,0.07847,63722.0,63717.0,0.00235413]
[1727101356645,0.3608,63727.0,63717.0,0.00235413]
[1727101356646,0.078465,63726.0,63717.0,0.00235413]
[1727101356847,0.3608,63727.0,63717.0,0.00235413]
[1727101357448,0.439264,63727.0,63719.0,0.078472]
[1727101357750,0.439264,63727.0,63717.0,0.00235413]
[1727101357751,0.3608,63727.0,63726.0,0.078464]
[1727101357959,0.3608,63727.0,63721.0,0.19]
[1727101358148,0.3608,63727.0,63725.0,0.078465]
[1727101358454,0.3608,63736.0,63726.0,0.5508]
[1727101358646,0.3608,63736.0,63725.0,0.3608]
[1727101359548,0.3608,63736.0,63726.0,0.19]
[1727101359745,0.3608,63736.0,63733.0,0.078455]
[1727101359950,0.3608,63736.0,63730.0,0.078458]
[1727101360146,0.078456,63734.0,63730.0,0.078458]
[1727101360451,0.3608,63736.0,63731.0,0.078458]
[1727101360647,0.439253,63736.0,63731.0,0.078458]
[1727101361570,0.439253,63736.0,63725.0,0.3608]
[1727101361571,0.078454,63735.0,63725.0,0.3608]
[1727101362143,0.3608,63736.0,63725.0,0.3608]
[1727101362852,0.3608,63736.0,63725.0,0.439266]
[1727101362853,0.078458,63731.0,63725.0,0.439266]
[1727101363052,0.078453,63735.0,63725.0,0.3608]
[1727101363256,0.3608,63736.0,63725.0,0.3608]
[1727101363452,0.439253,63736.0,63725.0,0.3608]
[1727101363651,0.3608,63736.0,63725.0,0.3608]
[1727101363844,0.3608,63736.0,63733.0,0.078455]
[1727101364349,0.078454,63735.0,63729.0,0.078461]
[1727101364558,0.3608,63736.0,63729.0,0.078461]
[1727101364762,0.078456,63733.0,63725.0,0.3608]
[1727101365055,0.078456,63733.0,63722.0,0.078468]
[1727101365056,0.078462,63729.0,63722.0,0.078468]
[1727101365278,0.3608,63729.0,63719.0,0.078473]
[1727101365447,0.078466,63726.0,63719.0,0.078473]
[1727101365756,0.439261,63729.0,63717.0,0.00235413]
[1727101365948,0.078466,63725.0,63719.0,0.078473]
[1727101366143,0.078466,63725.0,63720.0,0.078472]
[1727101366442,0.439261,63729.0,63717.0,0.00235413]
[1727101367061,0.078465,63726.0,63717.0,0.00235413]
[1727101367255,0.078465,63726.0,63719.0,0.078472]
[1727101367762,0.078466,63725.0,63719.0,0.078472]
[1727101368256,0.078466,63725.0,63720.0,0.078472]
[1727101368448,0.078468,63724.0,63720.0,0.078472]
[1727101368644,0.439261,63729.0,63720.0,0.078472]
[1727101368848,0.078465,63726.0,63720.0,0.078472]
[1727101369053,0.439261,63729.0,63724.0,0.078467]
[1727101369450,0.078461,63729.0,63724.0,0.078467]
[1727101369647,0.078462,63728.0,63724.0,0.078467]
[1727101369855,0.078463,63727.0,63724.0,0.078467]
[1727101370060,0.078463,63727.0,63722.0,0.04623116]
[1727101370263,0.078461,63729.0,63721.0,0.23623116]
[1727101370462,0.3608,63734.0,63728.0,0.19]
[1727101370649,0.3608,63734.0,63733.0,0.268456]
[1727101370850,0.3608,63734.0,63733.0,0.19]
[1727101371052,0.439254,63734.0,63729.0,0.07846]
[1727101371249,0.3608,63734.0,63728.0,0.19]
[1727101371461,0.3608,63734.0,63728.0,0.268461]
[1727101371665,0.078456,63733.0,63728.0,0.19]
[1727101372159,0.078452,63737.0,63729.0,0.3608]
[1727101372461,0.3608,63742.0,63732.0,0.078456]
[1727101372658,0.3608,63742.0,63729.0,0.3608]
[1727101372659,0.439245,63742.0,63729.0,0.3608]
[1727101372857,0.439245,63742.0,63732.0,0.078457]
[1727101373366,0.078452,63737.0,63732.0,0.078457]
[1727101373767,0.078446,63741.0,63734.0,0.078453]
[1727101373963,0.3608,63742.0,63734.0,0.078453]
[1727101373964,0.078449,63739.0,63734.0,0.078453]
[1727101374384,0.07845,63738.0,63734.0,0.078453]
[1727101374565,0.078449,63739.0,63734.0,0.078453]
[1727101374789,0.078451,63738.0,63734.0,0.078453]
[1727101374971,0.3608,63742.0,63729.0,0.3608]
[1727101375278,0.3608,63742.0,63729.0,0.37621484]
[1727101375472,0.3608,63742.0,63734.0,0.078454]
[1727101375473,0.078451,63737.0,63734.0,0.078454]
[1727101375782,0.3608,63742.0,63730.0,0.078459]
[1727101375783,0.078454,63735.0,63730.0,0.078459]
[1727101377278,0.078455,63734.0,63730.0,0.078459]
[1727101377880,0.078456,63733.0,63730.0,0.078459]
[1727101378074,0.078456,63733.0,63729.0,0.37621484]
[1727101378075,0.078457,63733.0,63729.0,0.37621484]
[1727101378681,0.078446,63741.0,63731.0,0.078458]
[1727101378682,0.001,63734.0,63731.0,0.078458]
[1727101378986,0.001,63734.0,63733.0,0.078456]
[1727101379572,0.2784,63746.0,63733.0,0.817632]
[1727101379775,0.00786772,63759.0,63745.0,0.9116]
[1727101379975,0.3608,63766.0,63752.0,0.3608]
[1727101379976,0.2828,63760.0,63752.0,0.3608]
[1727101380385,0.078426,63757.0,63756.0,0.13]
[1727101380680,0.2828,63760.0,63752.0,0.3608]
[1727101380681,0.078431,63753.0,63752.0,0.3608]
[1727101381580,0.078431,63753.0,63745.0,0.3608]
[1727101381581,0.13,63754.0,63745.0,0.3608]
[1727101381885,0.078443,63744.0,63739.0,0.00235331]
[1727101382273,0.13,63750.0,63739.0,0.00235331]
[1727101382586,0.3608,63752.0,63739.0,0.00235331]
[1727101382587,0.078445,63742.0,63739.0,0.00235331]
[1727101382886,0.078446,63741.0,63739.0,0.00235331]
[1727101383485,0.078442,63745.0,63739.0,0.00235331]
[1727101383785,0.3608,63752.0,63742.0,0.13]
[1727101384001,0.078436,63750.0,63742.0,0.13]
[1727101384186,0.078436,63749.0,63742.0,0.13]
[1727101384683,0.17167242,63743.0,63742.0,0.13]
[1727101384887,0.17167242,63744.0,63742.0,0.13]
[1727101385095,0.17167242,63744.0,63742.0,0.3608]
[1727101385387,0.002,63742.0,63739.0,0.00335331]
[1727101385584,0.17411049,63742.0,63739.0,0.00335331]
[1727101385891,0.04815565,63741.0,63739.0,0.08180031]
[1727101386189,0.002,63744.0,63743.0,0.078443]
[1727101386388,0.002,63744.0,63743.0,0.569243]
[1727101386695,0.002,63744.0,63743.0,1.039883]
[1727101386982,0.002,63744.0,63743.0,0.3608]
[1727101386983,0.080442,63744.0,63743.0,0.3608]
[1727101387185,0.002,63744.0,63743.0,0.3608]
[1727101387383,0.002,63744.0,63743.0,0.439243]
[1727101387981,0.07844,63746.0,63743.0,0.439243]
[1727101388181,0.15646431,63748.0,63745.0,0.078441]
[1727101388377,0.15646431,63748.0,63746.0,0.07844]
[1727101388586,0.23490031,63749.0,63746.0,0.07844]
[1727101388784,0.078438,63748.0,63744.0,0.13]
[1727101388978,0.17209414,63745.0,63744.0,0.078442]
[1727101389390,0.17209414,63746.0,63745.0,0.078441]
[1727101389592,0.17209414,63748.0,63747.0,0.078438]
[1727101390087,0.17209414,63749.0,63748.0,0.078437]
[1727101390394,0.17209414,63750.0,63749.0,0.078436]
[1727101390584,0.17209414,63751.0,63750.0,0.078435]
[1727101391081,0.22024572,63751.0,63750.0,0.078435]
[1727101391281,0.22024572,63751.0,63750.0,0.439235]
[1727101391585,0.1563732,63759.0,63752.0,0.078432]
[1727101391791,0.17209414,63763.0,63758.0,0.13]
[1727101391991,0.078414,63768.0,63762.0,0.13]
[1727101392286,0.0936,63770.0,63766.0,0.208414]
[1727101392494,0.0936,63770.0,63764.0,0.3608]
[1727101392681,0.078412,63769.0,63767.0,0.3608]
[1727101392882,0.1563732,63788.0,63767.0,0.3608]
[1727101392883,0.14056222,63792.0,63767.0,0.3608]
[1727101393087,0.53289414,63799.0,63791.0,0.13]
[1727101393088,0.261778,63796.0,63791.0,0.13]
[1727101393290,0.015784,63796.0,63792.0,0.3608]
[1727101393490,0.2206,63798.0,63792.0,0.3608]
[1727101393678,0.07838,63795.0,63792.0,0.3608]
[1727101393884,0.208381,63794.0,63792.0,0.3608]
[1727101394284,0.208381,63794.0,63779.0,0.3608]
[1727101394285,0.3608,63793.0,63779.0,0.3608]
[1727101394483,0.5508,63793.0,63779.0,0.3608]
[1727101394685,0.19,63785.0,63779.0,0.3608]
[1727101394903,0.078395,63783.0,63779.0,0.3608]
[1727101395187,0.078395,63783.0,63772.0,0.36315214]
[1727101395188,0.078402,63777.0,63772.0,0.36315214]
[1727101395392,0.078406,63774.0,63772.0,0.36315214]
[1727101395793,0.078406,63774.0,63765.0,0.3608]
[1727101395794,0.078415,63767.0,63765.0,0.3608]
[1727101395985,0.19,63766.0,63759.0,0.3608]
[1727101396385,0.3608,63772.0,63759.0,0.3608]
[1727101396386,0.078414,63767.0,63759.0,0.3608]
[1727101396989,0.078415,63766.0,63759.0,0.3608]
[1727101397186,1.5,63769.0,63763.0,0.19]
[1727101397393,0.3608,63772.0,63765.0,0.3608]
[1727101397600,0.003,63777.0,63771.0,0.3608]
[1727101397890,0.003,63777.0,63776.0,0.078403]
[1727101398281,0.00235281,63787.0,63776.0,0.078403]
[1727101398486,0.00235281,63787.0,63782.0,0.3608]
[1727101398802,0.08074281,63787.0,63782.0,0.3608]
[1727101399297,0.00235281,63787.0,63784.0,0.3608]
[1727101399607,0.00235281,63787.0,63786.0,0.078391]
[1727101399790,0.00235281,63787.0,63784.0,0.3608]
[1727101399978,0.03839112,63786.0,63784.0,0.3608]
[1727101400183,0.00235281,63787.0,63784.0,0.3608]
[1727101400489,0.14012596,63795.0,63784.0,0.3608]
[1727101400791,0.14012596,63801.0,63794.0,0.3608]
[1727101400988,0.078377,63797.0,63794.0,0.3608]
[1727101401189,0.078387,63790.0,63784.0,0.3608]
[1727101401496,0.005,63787.0,63784.0,0.3618]
[1727101401691,0.078392,63785.0,63784.0,0.001]
[1727101401897,0.11678782,63785.0,63784.0,0.001]
[1727101402085,0.629189,63788.0,63780.0,0.3608]
[1727101402086,0.078396,63782.0,63780.0,0.3608]
[1727101402285,0.629189,63788.0,63780.0,0.3608]
[1727101402782,0.629189,63788.0,63770.0,0.36284]
[1727101402783,0.0784,63779.0,63770.0,0.3608]
[1727101402988,0.3608,63781.0,63770.0,0.3608]
[1727101403193,0.3598,63781.0,63770.0,0.3608]
[1727101403394,0.078402,63777.0,63770.0,0.3608]
[1727101403597,0.005,63785.0,63770.0,0.3608]
[1727101403786,0.078395,63782.0,63772.0,0.078407]
[1727101404588,0.078402,63777.0,63771.0,0.0921]
[1727101404996,0.078403,63776.0,63771.0,0.0921]
[1727101405300,0.078403,63776.0,63772.0,0.005]
[1727101405592,0.3608,63782.0,63772.0,0.005]
[1727101405994,0.3608,63782.0,63770.0,0.3608]
[1727101405995,0.078405,63775.0,63770.0,0.3608]
[1727101406197,0.001,63777.0,63770.0,0.3608]
[1727101406701,0.001,63777.0,63776.0,0.439203]
[1727101406890,0.003,63782.0,63776.0,0.439203]
[1727101407091,0.003,63782.0,63776.0,0.3608]
[1727101407310,0.078397,63781.0,63776.0,0.3608]
[1727101407501,1.503,63782.0,63776.0,0.3608]
[1727101407700,0.078403,63776.0,63770.0,0.3608]
[1727101408299,0.19,63778.0,63770.0,0.3608]
[1727101408495,0.3608,63779.0,63770.0,0.3608]
[1727101408496,0.078403,63776.0,63770.0,0.3608]
[1727101408693,0.3608,63779.0,63770.0,0.3608]
[1727101409197,0.078398,63780.0,63770.0,0.3608]
[1727101409402,1.5,63781.0,63771.0,0.078409]
[1727101409403,0.003,63778.0,63771.0,0.078409]
[1727101409602,0.003,63778.0,63777.0,0.3608]
[1727101410202,0.003,63779.0,63777.0,0.3608]
[1727101410387,0.003,63779.0,63770.0,0.3608]
[1727101410697,0.078409,63771.0,63770.0,0.3608]
[1727101411098,0.3608,63773.0,63763.0,0.00235218]
[1727101411314,0.078418,63764.0,63763.0,0.00235218]
[1727101411997,0.078418,63764.0,63752.0,0.0973]
[1727101411998,0.07842,63762.0,63752.0,0.0973]
[1727101412195,0.07842,63762.0,63749.0,0.3608]
[1727101412196,0.19,63759.0,63749.0,0.3608]
[1727101412395,0.3608,63758.0,63749.0,0.3608]
[1727101412591,0.078425,63758.0,63749.0,0.3608]
[1727101412799,0.078427,63757.0,63749.0,0.3608]
[1727101413100,0.078428,63756.0,63749.0,0.3608]
[1727101413506,0.078428,63756.0,63749.0,0.3748]
[1727101414505,0.19,63757.0,63749.0,0.3748]
[1727101414802,0.5508,63752.0,63749.0,0.014]
[1727101415001,0.078435,63750.0,63749.0,0.014]
[1727101415202,0.078435,63750.0,63747.0,0.3608]
[1727101415203,0.065436,63749.0,63747.0,0.3608]
[1727101415411,0.176327,63756.0,63747.0,0.3608]
[1727101415412,0.078437,63748.0,63747.0,0.3608]
[1727101415793,0.3608,63752.0,63747.0,0.3608]
[1727101415999,0.078434,63751.0,63747.0,0.3608]
[1727101416706,0.078437,63748.0,63747.0,0.3608]
[1727101416909,0.078437,63748.0,63744.0,0.00235317]
[1727101416910,0.078441,63745.0,63744.0,0.00235317]
[1727101417605,0.439241,63745.0,63744.0,0.00235317]
[1727101418307,0.439241,63745.0,63731.0,0.4533]
[1727101418308,0.078442,63744.0,63731.0,0.4533]
[1727101418499,0.3608,63745.0,63731.0,0.4533]
[1727101418700,0.3608,63745.0,63731.0,0.45538]
[1727101418701,0.078452,63736.0,63731.0,0.45538]
[1727101418908,0.078452,63736.0,63731.0,0.4533]
[1727101419509,0.3608,63739.0,63731.0,0.531757]
[1727101419813,0.07845,63738.0,63731.0,0.4533]
[1727101420016,0.078453,63735.0,63731.0,0.4533]
[1727101421102,0.078456,63733.0,63731.0,0.4533]
[1727101421904,0.0391964,63733.0,63731.0,0.3608]
[1727101422601,0.078457,63732.0,63731.0,0.3608]
[1727101423904,0.002,63733.0,63732.0,0.078457]
[1727101424201,0.439249,63739.0,63731.0,0.5508]
[1727101424202,0.078453,63735.0,63731.0,0.5508]
[1727101424712,0.078455,63734.0,63731.0,0.5508]
[1727101425107,0.002,63732.0,63731.0,0.629258]
[1727101425801,0.3608,63739.0,63737.0,0.07845]
[1727101426112,0.3608,63739.0,63737.0,0.26845]
[1727101426513,0.08077581,63761.0,63752.0,0.078432]
[1727101426817,0.00235381,63761.0,63759.0,0.19]
[1727101428906,0.00235381,63761.0,63760.0,0.078422]
[1727101429108,0.01635381,63761.0,63760.0,0.078422]
[1727101429812,0.00535381,63761.0,63760.0,0.078422]
[1727101430112,0.003,63761.0,63760.0,0.548942]
[1727101430416,0.3608,63777.0,63765.0,0.078416]
[1727101430417,0.078404,63775.0,63765.0,0.078416]
[1727101430610,0.078404,63775.0,63770.0,0.19]
[1727101431310,0.078407,63773.0,63766.0,0.36284]
[1727101431512,0.19,63769.0,63759.0,0.3608]
[1727101431714,0.19,63774.0,63759.0,0.3608]
[1727101431906,0.078412,63769.0,63760.0,0.078421]
[1727101432106,0.3608,63768.0,63759.0,0.00204]
[1727101432307,0.078419,63763.0,63754.0,0.19]
[1727101432805,0.078428,63756.0,63753.0,0.36284]
[1727101433012,0.5508,63768.0,63753.0,0.3608]
[1727101433013,0.3608,63762.0,63753.0,0.3608]
[1727101433207,0.078421,63761.0,63753.0,0.3608]
[1727101433411,0.078421,63761.0,63746.0,0.00235309]
[1727101433412,0.078434,63752.0,63746.0,0.00235309]
[1727101433721,0.078435,63750.0,63746.0,0.00235309]
[1727101433915,0.3608,63754.0,63746.0,0.00235309]
[1727101434110,0.078435,63750.0,63746.0,0.00235309]
[1727101434420,1.5,63760.0,63749.0,0.19]
[1727101434607,0.006,63752.0,63749.0,0.19]
[1727101434808,0.006,63752.0,63748.0,0.439237]
[1727101435115,0.006,63752.0,63748.0,0.3608]
[1727101435311,0.006,63752.0,63746.0,0.00235309]
[1727101435513,0.006,63752.0,63747.0,0.078437]
[1727101435721,0.006,63752.0,63746.0,0.36315309]
[1727101436108,0.3608,63756.0,63746.0,0.36315309]
[1727101436109,0.19,63754.0,63746.0,0.36315309]
[1727101436311,0.004,63750.0,63746.0,0.36315309]
[1727101436526,0.078438,63747.0,63746.0,0.36315309]
[1727101436913,0.004,63750.0,63746.0,0.36315309]
[1727101437215,0.078435,63750.0,63746.0,0.36315309]
[1727101437717,0.3608,63750.0,63746.0,0.00235309]
[1727101438021,0.004,63747.0,63746.0,0.00235309]
[1727101438208,0.004,63747.0,63743.0,0.078443]
[1727101438720,0.004,63747.0,63746.0,0.07844]
[1727101439611,0.004,63747.0,63746.0,0.62924]
[1727101439817,0.078429,63755.0,63746.0,0.62924]
[1727101440007,0.43922,63762.0,63749.0,0.078436]
[1727101440008,0.004,63750.0,63749.0,0.078436]
[1727101440206,0.43922,63762.0,63754.0,0.078429]
[1727101440417,0.07842,63762.0,63756.0,0.19]
[1727101440621,0.07842,63762.0,63756.0,0.268427]
[1727101440823,0.07842,63762.0,63761.0,0.3608]
[1727101441308,0.00235345,63767.0,63761.0,0.3608]
[1727101441508,0.078418,63764.0,63761.0,0.3608]
[1727101441706,0.078416,63765.0,63756.0,0.19]
[1727101441707,0.07842,63762.0,63756.0,0.19]
[1727101441919,0.078416,63765.0,63756.0,0.19]
[1727101442219,2.0508,63774.0,63756.0,0.19]
[1727101442220,0.078418,63764.0,63757.0,0.078426]
[1727101442521,0.3608,63768.0,63755.0,0.09]
[1727101442818,0.3608,63768.0,63754.0,0.3608]
[1727101442819,0.078425,63758.0,63756.0,0.001]
[1727101443121,0.078426,63757.0,63756.0,0.001]
[1727101444015,0.078426,63757.0,63754.0,0.3608]
[1727101444216,0.3738,63768.0,63755.0,0.001]
[1727101444521,0.078427,63756.0,63755.0,0.001]
[1727101445022,0.078426,63757.0,63755.0,0.001]
[1727101445222,0.3738,63768.0,63755.0,0.001]
[1727101445223,0.452213,63768.0,63755.0,0.001]
[1727101445615,0.3738,63768.0,63755.0,0.001]
[1727101445816,0.452213,63768.0,63755.0,0.001]
[1727101446114,0.452213,63768.0,63755.0,0.079428]
[1727101446115,0.07842,63762.0,63755.0,0.079428]
[1727101446316,0.07842,63762.0,63756.0,0.078427]
[1727101446518,0.013,63757.0,63756.0,0.079427]
[1727101446820,0.013,63757.0,63756.0,0.001]
[1727101447421,0.013,63757.0,63754.0,0.3608]
[1727101447422,0.07842,63762.0,63755.0,0.001]
[1727101447617,0.078427,63756.0,63755.0,0.001]
[1727101448823,0.346854,63756.0,63755.0,0.001]
[1727101449024,0.077427,63756.0,63749.0,0.0974]
[1727101449322,0.013,63757.0,63749.0,0.0974]
[1727101449526,0.078428,63756.0,63749.0,0.0974]
[1727101449915,0.090428,63756.0,63755.0,0.001]
[1727101450622,0.078429,63755.0,63750.0,0.078435]
[1727101450817,0.078429,63755.0,63749.0,0.0984]
[1727101451322,0.078431,63753.0,63749.0,0.0984]
[1727101452122,0.078431,63753.0,63749.0,0.0974]
[1727101452314,0.077431,63753.0,63749.0,0.0974]
[1727101453017,0.077431,63753.0,63749.0,0.0984]
[1727101453018,0.083431,63753.0,63749.0,0.0984]
[1727101453218,0.083431,63753.0,63750.0,0.078434]
[1727101453219,0.006,63753.0,63750.0,0.078434]
[1727101453422,0.006,63753.0,63749.0,0.0984]
[1727101453637,0.15687,63750.0,63749.0,0.001]
[1727101454223,0.078435,63750.0,63749.0,0.001]
[1727101454430,0.15687,63750.0,63749.0,0.001]
[1727101455923,0.078445,63742.0,63741.0,0.3608]
[1727101456821,0.077445,63742.0,63741.0,0.3608]
[1727101457431,0.078454,63734.0,63730.0,0.0941]